[Event "January 2 Late 2024"]
[Site "https://www.chess.com"]
[Date "2024.01.02"]
[Round "5"]
[White "Iturrizaga Bonelli, Eduardo"]
[Black "Cardoso Cardoso, Jose Gabriel"]
[Result "1-0"]
[Board "29"]
[TimeControl "180+1"]
[WhiteFideId "3901211"]
[BlackFideId "4430492"]
[WhiteElo "2976"]
[BlackElo "2707"]
[WhiteTeam "ESP"]
[BlackTeam "COL"]
[WhiteClock "0:00:20"]
[BlackClock "0:00:00"]

1. c4 {[%clk 0:03:00]}  e6 {[%clk 0:02:56]} 2. Nf3 {[%clk 0:02:59]}  d5 {[%clk 0:02:55]} 3. e3 {[%clk 0:03:00]}  Nf6 {[%clk 0:02:51]} 4. b3 {[%clk 0:03:00]}  g6 {[%clk 0:02:49]} 5. Bb2 {[%clk 0:03:00]}  Bg7 {[%clk 0:02:50]} 6. Be2 {[%clk 0:03:01]}  O-O {[%clk 0:02:49]} 7. O-O {[%clk 0:03:01]}  Nbd7 {[%clk 0:02:46]} 8. Nc3 {[%clk 0:03:01]}  b6 {[%clk 0:02:44]} 9. Rc1 {[%clk 0:02:59]}  Bb7 {[%clk 0:02:43]} 10. d4 {[%clk 0:02:58]}  c5 {[%clk 0:02:37]} 11. dxc5 {[%clk 0:02:54]}  Nxc5 {[%clk 0:02:36]} 12. b4 {[%clk 0:02:44]}  Ncd7 {[%clk 0:02:30]} 13. Qb3 {[%clk 0:02:39]}  dxc4 {[%clk 0:02:28]} 14. Bxc4 {[%clk 0:02:40]}  Bxf3 {[%clk 0:02:28]} 15. gxf3 {[%clk 0:02:41]}  Nh5 {[%clk 0:02:21]} 16. Rfd1 {[%clk 0:02:01]}  Qg5+ {[%clk 0:02:18]} 17. Kh1 {[%clk 0:02:01]}  Ndf6 {[%clk 0:01:50]} 18. Bf1 {[%clk 0:01:41]}  Qh4 {[%clk 0:01:31]} 19. Kg1 {[%clk 0:01:42]}  Rfd8 {[%clk 0:01:04]} 20. Bg2 {[%clk 0:01:38]}  Rac8 {[%clk 0:00:47]} 21. a3 {[%clk 0:01:37]}  Nd7 {[%clk 0:00:39]} 22. Nb5 {[%clk 0:01:28]}  Rxc1 {[%clk 0:00:35]} 23. Rxc1 {[%clk 0:01:19]}  Ne5 {[%clk 0:00:33]} 24. Nd4 {[%clk 0:01:17]}  Nf6 {[%clk 0:00:22]} 25. Nxe6 {[%clk 0:01:09]}  Nd3 {[%clk 0:00:00]} 26. Qxd3 {[%clk 0:00:20]} 1-0

[Event "January 2 Late 2024"]
[Site "https://www.chess.com"]
[Date "2024.01.02"]
[Round "5"]
[White "Salem, A.R. Saleh"]
[Black "Martinez Ramirez, Lennis"]
[Result "1-0"]
[Board "31"]
[TimeControl "180+1"]
[WhiteFideId "9301348"]
[BlackFideId "3509079"]
[WhiteElo "2968"]
[BlackElo "2704"]
[WhiteTeam "UAE"]
[BlackTeam "CUB"]
[WhiteClock "0:00:53"]
[BlackClock "0:00:03"]

1. d4 {[%clk 0:02:56]}  Nf6 {[%clk 0:02:57]} 2. c4 {[%clk 0:02:55]}  e6 {[%clk 0:02:53]} 3. Nf3 {[%clk 0:02:55]}  b6 {[%clk 0:02:52]} 4. a3 {[%clk 0:02:55]}  Bb7 {[%clk 0:02:51]} 5. Nc3 {[%clk 0:02:55]}  d5 {[%clk 0:02:50]} 6. e3 {[%clk 0:02:54]}  c5 {[%clk 0:02:41]} 7. cxd5 {[%clk 0:02:55]}  exd5 {[%clk 0:02:31]} 8. Bb5+ {[%clk 0:02:55]}  Bc6 {[%clk 0:02:30]} 9. Bd3 {[%clk 0:02:55]}  Be7 {[%clk 0:02:26]} 10. Ne5 {[%clk 0:02:55]}  Bb7 {[%clk 0:02:27]} 11. Bb5+ {[%clk 0:02:51]}  Kf8 {[%clk 0:02:18]} 12. O-O {[%clk 0:02:49]}  a6 {[%clk 0:02:10]} 13. Ba4 {[%clk 0:02:47]}  h5 {[%clk 0:02:09]} 14. Qf3 {[%clk 0:02:29]}  b5 {[%clk 0:02:05]} 15. Bc2 {[%clk 0:02:26]}  Nc6 {[%clk 0:02:03]} 16. Nxc6 {[%clk 0:02:14]}  Bxc6 {[%clk 0:02:04]} 17. dxc5 {[%clk 0:02:14]}  Qc7 {[%clk 0:01:40]} 18. Ne2 {[%clk 0:01:36]}  Bxc5 {[%clk 0:01:33]} 19. Nd4 {[%clk 0:01:29]}  Bd7 {[%clk 0:01:32]} 20. Qd1 {[%clk 0:01:15]}  Bxd4 {[%clk 0:01:09]} 21. exd4 {[%clk 0:01:15]}  Ng4 {[%clk 0:01:00]} 22. g3 {[%clk 0:01:12]}  h4 {[%clk 0:00:59]} 23. Bf4 {[%clk 0:01:13]}  Qb6 {[%clk 0:00:58]} 24. h3 {[%clk 0:01:07]}  Nf6 {[%clk 0:00:25]} 25. g4 {[%clk 0:01:07]}  Ne4 {[%clk 0:00:24]} 26. f3 {[%clk 0:01:03]}  Ng3 {[%clk 0:00:23]} 27. Re1 {[%clk 0:01:03]}  Re8 {[%clk 0:00:14]} 28. Qd2 {[%clk 0:01:03]}  Qf6 {[%clk 0:00:08]} 29. Rxe8+ {[%clk 0:01:00]}  Bxe8 {[%clk 0:00:09]} 30. Re1 {[%clk 0:01:00]}  g5 {[%clk 0:00:07]} 31. Bxg5 {[%clk 0:00:54]}  Qxf3 {[%clk 0:00:07]} 32. Bh6+ {[%clk 0:00:54]}  Kg8 {[%clk 0:00:03]} 33. Rxe8# {[%clk 0:00:53]} 1-0

[Event "January 2 Late 2024"]
[Site "https://www.chess.com"]
[Date "2024.01.02"]
[Round "5"]
[White "Sevgi, Volkan"]
[Black "Harsha Bharathakoti"]
[Result "0-1"]
[Board "35"]
[TimeControl "180+1"]
[WhiteFideId "6325335"]
[BlackFideId "5078776"]
[WhiteElo "2683"]
[BlackElo "2918"]
[WhiteTeam "TUR"]
[BlackTeam "IND"]
[WhiteClock "0:00:06"]
[BlackClock "0:00:06"]

1. e4 {[%clk 0:03:00]}  Nc6 {[%clk 0:02:58]} 2. Nc3 {[%clk 0:03:00]}  d6 {[%clk 0:02:57]} 3. g3 {[%clk 0:02:57]}  g6 {[%clk 0:02:56]} 4. Bg2 {[%clk 0:02:57]}  Bg7 {[%clk 0:02:56]} 5. d3 {[%clk 0:02:57]}  h5 {[%clk 0:02:51]} 6. h3 {[%clk 0:02:57]}  e5 {[%clk 0:02:46]} 7. Nge2 {[%clk 0:02:55]}  Nge7 {[%clk 0:02:46]} 8. Bg5 {[%clk 0:02:50]}  Be6 {[%clk 0:02:42]} 9. Nd5 {[%clk 0:02:46]}  O-O {[%clk 0:02:36]} 10. Nf6+ {[%clk 0:02:43]}  Kh8 {[%clk 0:02:23]} 11. g4 {[%clk 0:02:34]}  h4 {[%clk 0:01:55]} 12. f4 {[%clk 0:02:18]}  exf4 {[%clk 0:01:53]} 13. Nxf4 {[%clk 0:02:18]}  Ne5 {[%clk 0:01:12]} 14. O-O {[%clk 0:02:14]}  Nd7 {[%clk 0:01:11]} 15. Qe1 {[%clk 0:01:21]}  Bxf6 {[%clk 0:00:41]} 16. Qxh4+ {[%clk 0:01:20]}  Kg7 {[%clk 0:00:41]} 17. Nh5+ {[%clk 0:01:20]}  gxh5 {[%clk 0:00:42]} 18. Rxf6 {[%clk 0:01:19]}  Rg8 {[%clk 0:00:11]} 19. Raf1 {[%clk 0:01:13]}  Nxf6 {[%clk 0:00:10]} 20. Rxf6 {[%clk 0:00:35]}  Kf8 {[%clk 0:00:11]} 21. d4 {[%clk 0:00:35]}  c6 {[%clk 0:00:04]} 22. d5 {[%clk 0:00:32]}  cxd5 {[%clk 0:00:05]} 23. exd5 {[%clk 0:00:32]}  Qb6+ {[%clk 0:00:05]} 24. Kh2 {[%clk 0:00:31]}  Nxd5 {[%clk 0:00:06]} 25. Rf1 {[%clk 0:00:18]}  Ne3 {[%clk 0:00:03]} 26. Bh6+ {[%clk 0:00:08]}  Ke8 {[%clk 0:00:03]} 27. Re1 {[%clk 0:00:04]}  Nxg2 {[%clk 0:00:03]} 28. Kxg2 {[%clk 0:00:04]}  Qc6+ {[%clk 0:00:04]} 29. Kg1 {[%clk 0:00:04]}  Qc5+ {[%clk 0:00:04]} 30. Be3 {[%clk 0:00:04]}  Qd5 {[%clk 0:00:04]} 31. g5 {[%clk 0:00:03]}  Kd7 {[%clk 0:00:05]} 32. c4 {[%clk 0:00:03]}  Qxc4 {[%clk 0:00:05]} 33. Qxh5 {[%clk 0:00:04]}  Rh8 {[%clk 0:00:04]} 34. Qf3 {[%clk 0:00:04]}  Rxh3 {[%clk 0:00:05]} 35. Qxb7+ {[%clk 0:00:04]}  Qc7 {[%clk 0:00:03]} 36. Qxa8 {[%clk 0:00:04]}  Rg3+ {[%clk 0:00:02]} 37. Kf2 {[%clk 0:00:05]}  Rh3 {[%clk 0:00:02]} 38. Qg2 {[%clk 0:00:05]}  Qa5 {[%clk 0:00:01]} 39. Kg1 {[%clk 0:00:03]}  Qb5 {[%clk 0:00:01]} 40. Rd1 {[%clk 0:00:03]}  Qc6 {[%clk 0:00:01]} 41. Qxc6+ {[%clk 0:00:04]}  Kxc6 {[%clk 0:00:02]} 42. Kf2 {[%clk 0:00:04]}  a6 {[%clk 0:00:02]} 43. Rc1+ {[%clk 0:00:04]}  Kd7 {[%clk 0:00:03]} 44. Kg2 {[%clk 0:00:05]}  Rxe3 {[%clk 0:00:03]} 45. Kf2 {[%clk 0:00:05]}  Re5 {[%clk 0:00:04]} 46. Rg1 {[%clk 0:00:05]}  Rf5+ {[%clk 0:00:04]} 47. Ke3 {[%clk 0:00:05]}  Bxa2 {[%clk 0:00:05]} 48. g6 {[%clk 0:00:06]}  fxg6 {[%clk 0:00:06]} 49. Rxg6 {[%clk 0:00:07]}  Re5+ {[%clk 0:00:06]} 50. Kd4 {[%clk 0:00:07]}  Kc6 {[%clk 0:00:07]} 51. Rg8 {[%clk 0:00:06]}  Bxg8 {[%clk 0:00:06]} 0-1

[Event "January 2 Late 2024"]
[Site "https://www.chess.com"]
[Date "2024.01.02"]
[Round "5"]
[White "Schmakel, Sam"]
[Black "Liascovich, Lucas"]
[Result "0-1"]
[Board "36"]
[TimeControl "180+1"]
[WhiteFideId "2039311"]
[BlackFideId "108634"]
[WhiteElo "2681"]
[BlackElo "2913"]
[WhiteTeam "USA"]
[BlackTeam "ARG"]
[WhiteClock "0:00:30"]
[BlackClock "0:00:58"]

1. d4 {[%clk 0:03:00]}  d5 {[%clk 0:02:27]} 2. Nf3 {[%clk 0:02:57]}  Nf6 {[%clk 0:02:26]} 3. c4 {[%clk 0:02:55]}  dxc4 {[%clk 0:02:26]} 4. e3 {[%clk 0:02:54]}  Bg4 {[%clk 0:02:26]} 5. Bxc4 {[%clk 0:02:52]}  e6 {[%clk 0:02:26]} 6. Qb3 {[%clk 0:02:49]}  Bxf3 {[%clk 0:02:24]} 7. gxf3 {[%clk 0:02:50]}  Nbd7 {[%clk 0:02:24]} 8. Nc3 {[%clk 0:02:34]}  Rb8 {[%clk 0:02:20]} 9. e4 {[%clk 0:02:31]}  b5 {[%clk 0:02:14]} 10. Be2 {[%clk 0:02:23]}  c5 {[%clk 0:02:11]} 11. Bf4 {[%clk 0:02:12]}  Rb6 {[%clk 0:02:10]} 12. O-O-O {[%clk 0:02:05]}  c4 {[%clk 0:02:09]} 13. Qc2 {[%clk 0:02:05]}  Be7 {[%clk 0:01:49]} 14. Rhg1 {[%clk 0:01:57]}  O-O {[%clk 0:01:43]} 15. e5 {[%clk 0:01:52]}  Nd5 {[%clk 0:01:35]} 16. Bh6 {[%clk 0:01:47]}  g6 {[%clk 0:01:35]} 17. Nxd5 {[%clk 0:01:40]}  exd5 {[%clk 0:01:36]} 18. f4 {[%clk 0:01:35]}  Re8 {[%clk 0:01:32]} 19. f5 {[%clk 0:01:31]}  Bf8 {[%clk 0:01:30]} 20. Bxf8 {[%clk 0:01:22]}  Nxf8 {[%clk 0:01:28]} 21. f6 {[%clk 0:01:22]}  b4 {[%clk 0:01:24]} 22. Qd2 {[%clk 0:01:19]}  c3 {[%clk 0:01:14]} 23. Qh6 {[%clk 0:01:19]}  Rxf6 {[%clk 0:01:10]} 24. exf6 {[%clk 0:01:14]}  Qxf6 {[%clk 0:01:08]} 25. Bd3 {[%clk 0:01:00]}  Qxf2 {[%clk 0:01:06]} 26. Bc2 {[%clk 0:01:00]}  Re2 {[%clk 0:01:05]} 27. Bb3 {[%clk 0:00:56]}  Rxb2 {[%clk 0:01:03]} 28. Rd2 {[%clk 0:00:30]}  Qxg1+ {[%clk 0:00:58]} 0-1

[Event "January 2 Late 2024"]
[Site "https://www.chess.com"]
[Date "2024.01.02"]
[Round "5"]
[White "Riff, Vincent"]
[Black "Tari, Aryan"]
[Result "1/2-1/2"]
[Board "37"]
[TimeControl "180+1"]
[WhiteFideId "617776"]
[BlackFideId "1510045"]
[WhiteElo "2680"]
[BlackElo "2909"]
[WhiteTeam "FRA"]
[BlackTeam "NOR"]
[WhiteClock "0:00:55"]
[BlackClock "0:00:04"]

1. e4 {[%clk 0:02:59]}  e5 {[%clk 0:02:52]} 2. Nf3 {[%clk 0:02:59]}  Nc6 {[%clk 0:02:51]} 3. Bb5 {[%clk 0:03:00]}  Nge7 {[%clk 0:02:51]} 4. O-O {[%clk 0:02:57]}  Ng6 {[%clk 0:02:51]} 5. d3 {[%clk 0:02:44]}  Bc5 {[%clk 0:02:47]} 6. Be3 {[%clk 0:02:44]}  Bxe3 {[%clk 0:02:28]} 7. fxe3 {[%clk 0:02:44]}  d6 {[%clk 0:02:28]} 8. Bxc6+ {[%clk 0:02:40]}  bxc6 {[%clk 0:02:28]} 9. Nbd2 {[%clk 0:02:40]}  O-O {[%clk 0:02:28]} 10. Qe1 {[%clk 0:02:40]}  f5 {[%clk 0:02:21]} 11. exf5 {[%clk 0:02:39]}  Bxf5 {[%clk 0:02:22]} 12. Qg3 {[%clk 0:02:35]}  Qe7 {[%clk 0:02:19]} 13. h4 {[%clk 0:02:29]}  h6 {[%clk 0:02:03]} 14. h5 {[%clk 0:02:27]}  Nh8 {[%clk 0:02:03]} 15. Nh4 {[%clk 0:02:26]}  Bh7 {[%clk 0:02:01]} 16. Rxf8+ {[%clk 0:02:17]}  Rxf8 {[%clk 0:02:01]} 17. Rf1 {[%clk 0:02:18]}  Rxf1+ {[%clk 0:01:58]} 18. Nxf1 {[%clk 0:02:18]}  Nf7 {[%clk 0:01:49]} 19. e4 {[%clk 0:02:15]}  Qe6 {[%clk 0:01:38]} 20. b3 {[%clk 0:02:06]}  d5 {[%clk 0:01:37]} 21. exd5 {[%clk 0:01:59]}  cxd5 {[%clk 0:01:37]} 22. Ne3 {[%clk 0:01:57]}  c6 {[%clk 0:01:26]} 23. Qg4 {[%clk 0:01:45]}  Qxg4 {[%clk 0:01:10]} 24. Nxg4 {[%clk 0:01:45]}  e4 {[%clk 0:01:11]} 25. dxe4 {[%clk 0:01:42]}  Bxe4 {[%clk 0:01:10]} 26. c3 {[%clk 0:01:37]}  Ng5 {[%clk 0:01:06]} 27. Kf2 {[%clk 0:01:34]}  Bb1 {[%clk 0:01:01]} 28. a3 {[%clk 0:01:34]}  Ne4+ {[%clk 0:01:01]} 29. Ke3 {[%clk 0:01:34]}  Nxc3 {[%clk 0:01:02]} 30. Kd4 {[%clk 0:01:34]}  Nb5+ {[%clk 0:01:01]} 31. Kc5 {[%clk 0:01:34]}  Nxa3 {[%clk 0:01:02]} 32. Ne5 {[%clk 0:01:32]}  Be4 {[%clk 0:00:59]} 33. Nxc6 {[%clk 0:01:31]}  Nc2 {[%clk 0:00:51]} 34. Ne7+ {[%clk 0:01:27]}  Kf7 {[%clk 0:00:50]} 35. Nxd5 {[%clk 0:01:28]}  Ke6 {[%clk 0:00:47]} 36. Nc3 {[%clk 0:01:23]}  Bb7 {[%clk 0:00:38]} 37. b4 {[%clk 0:01:23]}  Kf6 {[%clk 0:00:35]} 38. g4 {[%clk 0:01:21]}  Ne3 {[%clk 0:00:33]} 39. Nb5 {[%clk 0:01:15]}  Nxg4 {[%clk 0:00:32]} 40. Nxa7 {[%clk 0:01:12]}  Kg5 {[%clk 0:00:32]} 41. Ng6 {[%clk 0:01:13]}  Kxh5 {[%clk 0:00:32]} 42. Nf4+ {[%clk 0:01:07]}  Kg5 {[%clk 0:00:33]} 43. Ne6+ {[%clk 0:01:08]}  Kf6 {[%clk 0:00:32]} 44. Nd8 {[%clk 0:01:06]}  Ba8 {[%clk 0:00:26]} 45. Nb5 {[%clk 0:01:06]}  h5 {[%clk 0:00:23]} 46. Nc7 {[%clk 0:01:06]}  Bf3 {[%clk 0:00:21]} 47. Nd5+ {[%clk 0:01:01]}  Bxd5 {[%clk 0:00:20]} 48. Kxd5 {[%clk 0:01:02]}  h4 {[%clk 0:00:21]} 49. Ke4 {[%clk 0:01:02]}  Ke7 {[%clk 0:00:08]} 50. Nc6+ {[%clk 0:01:00]}  Kd6 {[%clk 0:00:07]} 51. Nd4 {[%clk 0:01:00]}  g5 {[%clk 0:00:07]} 52. Kf5 {[%clk 0:00:55]}  Ne5 {[%clk 0:00:02]} 53. Kxg5 {[%clk 0:00:54]}  h3 {[%clk 0:00:03]} 54. Nf5+ {[%clk 0:00:54]}  Kd5 {[%clk 0:00:03]} 55. Ng3 {[%clk 0:00:55]}  Kc4 {[%clk 0:00:03]} 56. Kh4 {[%clk 0:00:55]}  Nc6 {[%clk 0:00:03]} 57. Kxh3 {[%clk 0:00:55]}  Nxb4 {[%clk 0:00:04]} 1/2-1/2

[Event "January 2 Late 2024"]
[Site "https://www.chess.com"]
[Date "2024.01.02"]
[Round "5"]
[White "Zhigalko, Sergei"]
[Black "Annaberdiyev, Meylis"]
[Result "1-0"]
[Board "38"]
[TimeControl "180+1"]
[WhiteFideId "13502956"]
[BlackFideId "14000563"]
[WhiteElo "2909"]
[BlackElo "2680"]
[WhiteTeam "BLR"]
[BlackTeam "TKM"]
[WhiteClock "0:00:03"]
[BlackClock "0:00:00"]

1. e4 {[%clk 0:03:00]}  c5 {[%clk 0:02:59]} 2. Nf3 {[%clk 0:03:00]}  Nc6 {[%clk 0:02:59]} 3. c3 {[%clk 0:03:01]}  Nf6 {[%clk 0:02:52]} 4. e5 {[%clk 0:03:01]}  Nd5 {[%clk 0:02:52]} 5. Bc4 {[%clk 0:03:01]}  Nb6 {[%clk 0:02:50]} 6. Bb3 {[%clk 0:03:01]}  d5 {[%clk 0:02:50]} 7. exd6 {[%clk 0:03:01]}  Qxd6 {[%clk 0:02:50]} 8. O-O {[%clk 0:03:02]}  c4 {[%clk 0:02:42]} 9. Bc2 {[%clk 0:03:01]}  Bg4 {[%clk 0:02:42]} 10. Re1 {[%clk 0:03:01]}  O-O-O {[%clk 0:02:39]} 11. b3 {[%clk 0:02:56]}  Qf6 {[%clk 0:02:31]} 12. Na3 {[%clk 0:02:46]}  Bxf3 {[%clk 0:02:13]} 13. Qxf3 {[%clk 0:02:46]}  Qxf3 {[%clk 0:02:13]} 14. gxf3 {[%clk 0:02:47]}  cxb3 {[%clk 0:02:07]} 15. axb3 {[%clk 0:02:47]}  e6 {[%clk 0:02:08]} 16. Nc4 {[%clk 0:02:30]}  Nd5 {[%clk 0:02:03]} 17. b4 {[%clk 0:02:29]}  a6 {[%clk 0:02:00]} 18. Rb1 {[%clk 0:01:55]}  b5 {[%clk 0:01:44]} 19. Ne3 {[%clk 0:01:50]}  Nf4 {[%clk 0:01:28]} 20. d4 {[%clk 0:01:27]}  Bd6 {[%clk 0:01:27]} 21. Ra1 {[%clk 0:01:20]}  Kb7 {[%clk 0:01:06]} 22. Be4 {[%clk 0:01:18]}  Rc8 {[%clk 0:01:02]} 23. d5 {[%clk 0:01:03]}  exd5 {[%clk 0:00:55]} 24. Nxd5 {[%clk 0:01:04]}  Nxd5 {[%clk 0:00:51]} 25. Bxd5 {[%clk 0:01:05]}  Rhd8 {[%clk 0:00:51]} 26. Bxf7 {[%clk 0:01:00]}  Be5 {[%clk 0:00:49]} 27. Ra3 {[%clk 0:00:51]}  Rd3 {[%clk 0:00:37]} 28. c4 {[%clk 0:00:32]}  Rxa3 {[%clk 0:00:09]} 29. Bxa3 {[%clk 0:00:33]}  Bc3 {[%clk 0:00:10]} 30. Rb1 {[%clk 0:00:16]}  bxc4 {[%clk 0:00:09]} 31. Bxc4 {[%clk 0:00:13]}  Nd4 {[%clk 0:00:09]} 32. Bd5+ {[%clk 0:00:07]}  Kb6 {[%clk 0:00:10]} 33. Kf1 {[%clk 0:00:04]}  Rd8 {[%clk 0:00:08]} 34. Be4 {[%clk 0:00:03]}  Nb5 {[%clk 0:00:08]} 35. Bc1 {[%clk 0:00:03]}  Rd1+ {[%clk 0:00:08]} 36. Ke2 {[%clk 0:00:04]}  Re1+ {[%clk 0:00:08]} 37. Kd3 {[%clk 0:00:03]}  Rh1 {[%clk 0:00:00]} 38. Be3+ {[%clk 0:00:03]} 1-0

[Event "January 2 Late 2024"]
[Site "https://www.chess.com"]
[Date "2024.01.02"]
[Round "5"]
[White "Tang, Andrew"]
[Black "TheCavemanChess"]
[Result "1/2-1/2"]
[Board "39"]
[TimeControl "180+1"]
[WhiteFideId "2059630"]
[WhiteElo "2904"]
[BlackElo "2673"]
[WhiteTeam "USA"]
[WhiteClock "0:01:05"]
[BlackClock "0:00:22"]

1. d4 {[%clk 0:03:00]}  Nf6 {[%clk 0:02:58]} 2. c4 {[%clk 0:02:59]}  e6 {[%clk 0:02:58]} 3. Nc3 {[%clk 0:02:58]}  d5 {[%clk 0:02:57]} 4. cxd5 {[%clk 0:02:59]}  exd5 {[%clk 0:02:58]} 5. Bg5 {[%clk 0:02:58]}  Be7 {[%clk 0:02:59]} 6. e3 {[%clk 0:02:59]}  O-O {[%clk 0:02:59]} 7. Bd3 {[%clk 0:02:59]}  Re8 {[%clk 0:03:00]} 8. Qc2 {[%clk 0:02:59]}  h6 {[%clk 0:03:00]} 9. Bh4 {[%clk 0:02:59]}  c5 {[%clk 0:03:01]} 10. Nge2 {[%clk 0:02:57]}  Nc6 {[%clk 0:02:59]} 11. dxc5 {[%clk 0:02:58]}  d4 {[%clk 0:02:57]} 12. O-O-O {[%clk 0:02:18]}  dxc3 {[%clk 0:02:26]} 13. Bxf6 {[%clk 0:02:18]}  Bxf6 {[%clk 0:02:23]} 14. Bh7+ {[%clk 0:02:17]}  Kh8 {[%clk 0:02:24]} 15. Rxd8 {[%clk 0:02:18]}  cxb2+ {[%clk 0:02:24]} 16. Kb1 {[%clk 0:02:18]}  Rxd8 {[%clk 0:02:23]} 17. Be4 {[%clk 0:02:19]}  Be6 {[%clk 0:02:18]} 18. a3 {[%clk 0:02:14]}  Na5 {[%clk 0:02:02]} 19. Nd4 {[%clk 0:01:35]}  Bxd4 {[%clk 0:01:48]} 20. exd4 {[%clk 0:01:36]}  Rxd4 {[%clk 0:01:49]} 21. Re1 {[%clk 0:01:33]}  Nc4 {[%clk 0:01:44]} 22. Qc3 {[%clk 0:01:31]}  Rad8 {[%clk 0:01:37]} 23. Bc2 {[%clk 0:01:29]}  Rd2 {[%clk 0:00:52]} 24. f4 {[%clk 0:01:27]}  Rxg2 {[%clk 0:00:43]} 25. Rxe6 {[%clk 0:01:22]}  Nd2+ {[%clk 0:00:34]} 26. Kxb2 {[%clk 0:01:10]}  fxe6 {[%clk 0:00:35]} 27. Kc1 {[%clk 0:01:05]}  Rg1+ {[%clk 0:00:27]} 28. Kb2 {[%clk 0:01:05]}  Rg2 {[%clk 0:00:28]} 29. Kc1 {[%clk 0:01:05]}  Rg1+ {[%clk 0:00:22]} 30. Kb2 {[%clk 0:01:05]}  Rg2 {[%clk 0:00:22]} 1/2-1/2

[Event "January 2 Late 2024"]
[Site "https://www.chess.com"]
[Date "2024.01.02"]
[Round "5"]
[White "Ozates, Tuna"]
[Black "Bachmann, Axel"]
[Result "0-1"]
[Board "46"]
[TimeControl "180+1"]
[WhiteFideId "6354521"]
[BlackFideId "3700488"]
[WhiteElo "2650"]
[BlackElo "2822"]
[WhiteTeam "TUR"]
[BlackTeam "PAR"]
[WhiteClock "0:00:02"]
[BlackClock "0:00:12"]

1. e4 {[%clk 0:02:56]}  Nc6 {[%clk 0:02:59]} 2. Nf3 {[%clk 0:02:53]}  d6 {[%clk 0:03:00]} 3. d4 {[%clk 0:02:49]}  Nf6 {[%clk 0:02:57]} 4. d5 {[%clk 0:02:42]}  Nb8 {[%clk 0:02:46]} 5. Bd3 {[%clk 0:02:40]}  g6 {[%clk 0:02:41]} 6. c4 {[%clk 0:02:40]}  c6 {[%clk 0:02:42]} 7. Nc3 {[%clk 0:02:41]}  Bg7 {[%clk 0:02:37]} 8. h3 {[%clk 0:02:39]}  O-O {[%clk 0:02:35]} 9. O-O {[%clk 0:02:39]}  a5 {[%clk 0:02:32]} 10. Re1 {[%clk 0:02:38]}  Na6 {[%clk 0:02:28]} 11. Bf4 {[%clk 0:02:34]}  Nd7 {[%clk 0:02:15]} 12. Qd2 {[%clk 0:02:32]}  Nac5 {[%clk 0:02:10]} 13. Bc2 {[%clk 0:02:30]}  a4 {[%clk 0:02:05]} 14. Rad1 {[%clk 0:02:27]}  Qa5 {[%clk 0:02:02]} 15. dxc6 {[%clk 0:02:26]}  bxc6 {[%clk 0:01:58]} 16. e5 {[%clk 0:02:26]}  Nb6 {[%clk 0:01:24]} 17. b3 {[%clk 0:01:24]}  axb3 {[%clk 0:01:24]} 18. axb3 {[%clk 0:01:25]}  Qb4 {[%clk 0:01:10]} 19. Nd5 {[%clk 0:01:15]}  Nxd5 {[%clk 0:01:09]} 20. cxd5 {[%clk 0:01:15]}  Qxd2 {[%clk 0:01:08]} 21. Rxd2 {[%clk 0:01:16]}  cxd5 {[%clk 0:01:00]} 22. exd6 {[%clk 0:01:06]}  e6 {[%clk 0:00:58]} 23. Ne5 {[%clk 0:00:58]}  Nd7 {[%clk 0:00:45]} 24. Nxd7 {[%clk 0:00:39]}  Bxd7 {[%clk 0:00:46]} 25. Be5 {[%clk 0:00:40]}  Bxe5 {[%clk 0:00:44]} 26. Rxe5 {[%clk 0:00:41]}  Ra6 {[%clk 0:00:44]} 27. Re3 {[%clk 0:00:36]}  Rc8 {[%clk 0:00:42]} 28. b4 {[%clk 0:00:29]}  Rxd6 {[%clk 0:00:37]} 29. Bd1 {[%clk 0:00:24]}  Rc1 {[%clk 0:00:33]} 30. Kh2 {[%clk 0:00:23]}  Rb1 {[%clk 0:00:31]} 31. Rb3 {[%clk 0:00:23]}  Rxb3 {[%clk 0:00:31]} 32. Bxb3 {[%clk 0:00:24]}  Rb6 {[%clk 0:00:31]} 33. Rd4 {[%clk 0:00:23]}  Kf8 {[%clk 0:00:26]} 34. f4 {[%clk 0:00:22]}  Ke7 {[%clk 0:00:26]} 35. g4 {[%clk 0:00:22]}  f6 {[%clk 0:00:25]} 36. Kg3 {[%clk 0:00:22]}  Bc6 {[%clk 0:00:22]} 37. h4 {[%clk 0:00:19]}  e5 {[%clk 0:00:20]} 38. fxe5 {[%clk 0:00:19]}  fxe5 {[%clk 0:00:21]} 39. Rd1 {[%clk 0:00:18]}  Kd6 {[%clk 0:00:20]} 40. h5 {[%clk 0:00:18]}  Rxb4 {[%clk 0:00:19]} 41. Bc2 {[%clk 0:00:18]}  gxh5 {[%clk 0:00:17]} 42. gxh5 {[%clk 0:00:16]}  e4 {[%clk 0:00:18]} 43. Kf4 {[%clk 0:00:16]}  Rc4 {[%clk 0:00:13]} 44. Bb1 {[%clk 0:00:14]}  Kc5 {[%clk 0:00:11]} 45. h6 {[%clk 0:00:11]}  Rc3 {[%clk 0:00:10]} 46. Rg1 {[%clk 0:00:09]}  Rh3 {[%clk 0:00:10]} 47. Rc1+ {[%clk 0:00:07]}  Kd6 {[%clk 0:00:09]} 48. Rd1 {[%clk 0:00:03]}  Rxh6 {[%clk 0:00:09]} 49. Kg5 {[%clk 0:00:04]}  Rg6+ {[%clk 0:00:09]} 50. Kf5 {[%clk 0:00:04]}  Re6 {[%clk 0:00:09]} 51. Rh1 {[%clk 0:00:02]}  Re5+ {[%clk 0:00:09]} 52. Kf4 {[%clk 0:00:02]}  Re7 {[%clk 0:00:09]} 53. Rh6+ {[%clk 0:00:02]}  Kc5 {[%clk 0:00:10]} 54. Ke3 {[%clk 0:00:03]}  d4+ {[%clk 0:00:10]} 55. Kd2 {[%clk 0:00:03]}  e3+ {[%clk 0:00:10]} 56. Ke1 {[%clk 0:00:04]}  Bb5 {[%clk 0:00:11]} 57. Rh5+ {[%clk 0:00:04]}  Kb4 {[%clk 0:00:11]} 58. Bc2 {[%clk 0:00:02]}  d3 {[%clk 0:00:11]} 59. Rxb5+ {[%clk 0:00:01]}  Kxb5 {[%clk 0:00:11]} 60. Bxd3+ {[%clk 0:00:02]}  Kc5 {[%clk 0:00:12]} 0-1